bitfinex/quotes_BTCUSD_20240727
["timestamp","ask_amount","ask_price","bid_price","bid_amount"]
[1722073948991,0.02579326,68329.0,68328.0,1.73147927]
[1722073949135,0.00283,68329.0,68328.0,1.73147927]
[1722073949343,0.00283,68329.0,68328.0,1.74547927]
[1722073949539,0.00283,68329.0,68328.0,1.71747927]
[1722073949734,0.00283,68329.0,68328.0,1.76747927]
[1722073950104,0.00283,68329.0,68328.0,2.18627927]
[1722073950254,0.00283,68329.0,68328.0,2.47898427]
[1722073950449,0.00283,68329.0,68328.0,2.46498427]
[1722073950654,0.00283,68329.0,68328.0,2.47898427]
[1722073951904,0.00283,68329.0,68328.0,2.22898427]
[1722073952459,0.02579308,68329.0,68328.0,2.22898427]
[1722073952959,0.00283,68329.0,68328.0,2.22898427]
[1722073953710,0.00283,68329.0,68328.0,2.47898427]
[1722073955422,0.00283,68329.0,68328.0,2.22898427]
[1722073956124,0.02579308,68329.0,68328.0,2.22898427]
[1722073956484,0.00283,68329.0,68328.0,2.22898427]
[1722073956999,0.00283,68329.0,68328.0,2.47898427]
[1722073957429,0.00283,68329.0,68328.0,2.22898427]
[1722073958774,0.00283,68329.0,68328.0,2.47898427]
[1722073959177,0.02579308,68329.0,68328.0,2.47898427]
[1722073960297,0.00283,68329.0,68328.0,2.47898427]
[1722073967255,0.02579314,68329.0,68328.0,2.47898427]
[1722073968069,0.02579314,68329.0,68328.0,2.77168927]
[1722073968294,0.00283,68329.0,68328.0,2.77168927]
[1722073971390,0.02579268,68329.0,68328.0,2.77168927]
[1722073972743,0.00283,68329.0,68328.0,2.77168927]
[1722073972908,0.00283,68329.0,68328.0,2.77368927]
[1722073975730,0.02579268,68329.0,68328.0,2.77368927]
[1722073976470,0.02579268,68329.0,68328.0,2.77168927]
[1722073977470,0.00283,68329.0,68328.0,2.77168927]
[1722073980430,0.02579268,68329.0,68328.0,2.77168927]
[1722073981049,0.00283,68329.0,68328.0,2.77168927]
[1722073984292,0.02579268,68329.0,68328.0,2.77168927]
[1722073985254,0.02579268,68329.0,68328.0,2.77368927]
[1722073985463,0.00283,68329.0,68328.0,2.77368927]
[1722073985893,0.00283,68329.0,68328.0,2.77168927]
[1722073986099,0.00283,68329.0,68328.0,2.14488427]
[1722073986324,0.00283,68329.0,68328.0,2.47898427]
[1722073986855,0.00283,68329.0,68328.0,2.77168927]
[1722073987006,0.00283,68329.0,68328.0,2.47898427]
[1722073987574,0.00283,68329.0,68328.0,2.77168927]
[1722073988857,0.00283,68329.0,68328.0,2.47898427]
[1722073989442,0.00283,68329.0,68328.0,2.77168927]
[1722073989649,0.00283,68329.0,68328.0,2.47898427]
[1722073990306,0.00283,68329.0,68328.0,2.77168927]
[1722073991315,0.00283,68329.0,68328.0,2.77368927]
[1722073992628,0.02579269,68329.0,68328.0,2.77368927]
[1722073993024,0.00283,68329.0,68328.0,2.77368927]
[1722073994356,0.00283,68329.0,68328.0,2.39488427]
[1722073994654,0.00283,68329.0,68328.0,2.47898427]
[1722073995639,0.00283,68329.0,68328.0,2.41408427]
[1722073996226,0.02579293,68329.0,68328.0,2.41408427]
[1722073998780,0.02579293,68329.0,68328.0,2.33818427]
[1722073999891,0.02579293,68329.0,68328.0,2.25408427]
[1722074000119,0.02579293,68329.0,68328.0,2.33818427]
[1722074000520,0.02579293,68329.0,68328.0,2.25408427]
[1722074000867,0.02579293,68329.0,68328.0,2.33818427]
[1722074001898,0.02579293,68329.0,68328.0,2.08818427]
[1722074002251,0.02579293,68329.0,68328.0,1.95408427]
[1722074002374,0.02579293,68329.0,68328.0,2.03818427]
[1722074002766,0.02579293,68329.0,68328.0,2.08818427]
[1722074003991,0.02579293,68329.0,68328.0,2.08918427]
[1722074004195,0.02579293,68329.0,68328.0,2.33918427]
[1722074004391,0.02579293,68329.0,68328.0,2.07559657]
[1722074004595,0.02579293,68329.0,68328.0,2.08918427]
[1722074005032,0.02579293,68329.0,68328.0,2.33918427]
[1722074005434,0.00283,68329.0,68328.0,2.08918427]
[1722074005740,0.00283,68329.0,68328.0,2.07559657]
[1722074006322,0.00283,68329.0,68328.0,2.08918427]
[1722074008797,0.02579368,68329.0,68328.0,2.08918427]
[1722074009012,0.02579368,68329.0,68328.0,1.74647927]
[1722074009739,0.09269368,68329.0,68328.0,2.03918427]
[1722074010138,0.06973,68329.0,68328.0,2.03918427]
[1722074010956,0.06973,68329.0,68328.0,1.74647927]
[1722074011682,0.06973,68329.0,68328.0,2.03918427]
[1722074011887,0.06973,68329.0,68328.0,1.74647927]
[1722074012854,0.06873,68329.0,68328.0,1.74547927]
[1722074013475,0.09169402,68329.0,68328.0,1.74547927]
[1722074013608,0.06873,68329.0,68328.0,1.74547927]
[1722074014026,0.06873,68329.0,68328.0,1.66137927]
[1722074014241,0.06873,68329.0,68328.0,1.71747927]
[1722074014445,0.06873,68329.0,68328.0,1.73147927]
[1722074014655,0.00183,68329.0,68328.0,1.73147927]
[1722074015066,0.00183,68329.0,68328.0,1.83147927]
[1722074015863,0.00183,68329.0,68328.0,1.84547927]
[1722074016016,0.00183,68329.0,68328.0,1.81747927]
[1722074016419,0.00183,68329.0,68328.0,1.84547927]
[1722074016842,0.02479394,68329.0,68328.0,1.84547927]
[1722074017301,0.00183,68329.0,68328.0,1.84547927]
[1722074017633,0.00183,68329.0,68328.0,1.74547927]
[1722074020301,0.02479405,68329.0,68328.0,1.74547927]
[1722074026210,0.00183,68329.0,68328.0,1.74547927]
[1722074027432,0.00183,68329.0,68328.0,2.03818427]
[1722074027599,0.00183,68329.0,68328.0,1.74547927]
[1722074028013,0.00183,68329.0,68328.0,2.04948732]
[1722074028209,0.00183,68329.0,68328.0,1.74547927]
[1722074028406,0.00183,68329.0,68328.0,1.74703347]
[1722074028739,0.00183,68329.0,68328.0,1.74547927]
[1722074028945,0.00183,68329.0,68328.0,2.03973847]
[1722074029176,0.00183,68329.0,68328.0,2.03818427]
[1722074029567,0.02479398,68329.0,68328.0,2.03818427]
[1722074030101,0.02479398,68329.0,68328.0,1.74547927]
[1722074030230,0.02479398,68329.0,68328.0,2.03818427]
[1722074030679,0.02479398,68329.0,68328.0,1.74547927]
[1722074030904,0.00183,68329.0,68328.0,1.74547927]
[1722074031431,0.00183,68329.0,68328.0,2.52480046]
[1722074032317,0.00183,68329.0,68328.0,2.81750546]
[1722074032513,0.00183,68329.0,68328.0,2.52480046]
[1722074032717,0.00183,68329.0,68328.0,2.60050046]
[1722074033166,0.00183,68329.0,68328.0,2.89320546]
[1722074033344,0.12382365,68336.0,68335.0,0.1270477]
[1722074033545,0.0644,68339.0,68338.0,0.4819407]
[1722074033749,0.0644,68339.0,68338.0,1.1513647]
[1722074033911,0.0644,68339.0,68338.0,1.27296845]
[1722074034112,0.08736283,68339.0,68338.0,1.27296845]
[1722074034433,0.08736283,68339.0,68338.0,1.4440267]
[1722074034434,0.0644,68339.0,68338.0,1.4440267]
[1722074035378,0.06286534,68339.0,68338.0,1.4440267]
[1722074035590,0.06286534,68339.0,68338.0,1.4580267]
[1722074035948,0.06286534,68339.0,68338.0,1.4440267]
[1722074036131,0.0626399,68339.0,68338.0,1.4580267]
[1722074036332,0.1241399,68339.0,68338.0,1.4580267]
[1722074036735,0.1241399,68339.0,68338.0,1.52399906]
[1722074036958,0.1241399,68339.0,68338.0,1.4580267]
[1722074037682,0.14710264,68339.0,68338.0,1.4580267]
[1722074037985,0.1241399,68339.0,68338.0,1.5720267]
[1722074038278,0.1241399,68339.0,68338.0,1.5580267]
[1722074038485,0.1249799,68339.0,68338.0,1.5580267]
[1722074038707,0.0010799,68339.0,68338.0,1.5720267]
[1722074039164,0.00074172,68339.0,68338.0,1.5720267]
[1722074039356,0.00074172,68339.0,68338.0,1.5950267]
[1722074039556,0.00074172,68339.0,68338.0,1.6707267]
[1722074040141,0.00074172,68339.0,68338.0,1.99542306]
[1722074040354,0.00074172,68339.0,68338.0,1.6707267]
[1722074040594,0.00074172,68339.0,68338.0,1.5950267]
[1722074040806,0.02370408,68339.0,68338.0,1.5950267]
[1722074041358,0.02370408,68339.0,68338.0,2.00767917]
[1722074041527,0.02370408,68339.0,68338.0,1.5950267]
[1722074041712,0.02370408,68339.0,68338.0,1.71662153]
[1722074041919,0.02370408,68339.0,68338.0,2.00767916]
[1722074042096,0.02370408,68339.0,68338.0,1.5950267]
[1722074043616,0.02370408,68339.0,68338.0,1.71662153]
[1722074044037,0.02370408,68339.0,68338.0,1.82657056]
[1722074044277,0.02370408,68339.0,68338.0,2.1512638]
[1722074044873,0.02370408,68339.0,68338.0,2.27285863]
[1722074045173,0.02370408,68339.0,68338.0,2.27285889]
[1722074045515,0.02370408,68339.0,68338.0,2.1629098]
[1722074047195,0.00074172,68339.0,68338.0,2.16290338]
[1722074049316,0.00074172,68339.0,68338.0,2.39660192]
[1722074049515,0.00074172,68339.0,68338.0,2.07191321]
[1722074049720,0.00074172,68339.0,68338.0,2.39660192]
[1722074049960,0.00074172,68339.0,68338.0,2.16290338]
[1722074050340,0.02370394,68339.0,68338.0,2.16389764]
[1722074050525,0.02370394,68339.0,68338.0,2.16290338]
[1722074050720,0.00074172,68339.0,68338.0,2.396602]
[1722074050925,0.00074172,68339.0,68338.0,2.04131024]
[1722074051144,0.00074172,68339.0,68338.0,2.39660192]
[1722074053117,0.00074172,68339.0,68338.0,2.16290338]
[1722074053751,0.00074172,68339.0,68338.0,1.71662153]
[1722074053924,0.02370394,68339.0,68338.0,2.16291643]
[1722074054270,0.00074172,68339.0,68338.0,2.16291643]
[1722074057523,0.00074172,68339.0,68338.0,1.83821822]
[1722074057524,0.02370396,68339.0,68338.0,1.83821822]
[1722074057730,0.02370396,68339.0,68338.0,2.30571643]
[1722074058766,0.00074172,68339.0,68338.0,2.30571643]
[1722074061381,0.00074172,68339.0,68338.0,2.30570608]
[1722074062883,0.00074172,68339.0,68338.0,2.48809527]
[1722074063288,0.00074172,68339.0,68338.0,2.53940287]
[1722074064160,0.00074172,68339.0,68338.0,2.35701368]
[1722074064361,0.00074172,68339.0,68338.0,2.30570608]
[1722074064538,0.00074172,68339.0,68338.0,2.74862765]
[1722074065430,0.00074172,68339.0,68338.0,2.7486237]
[1722074066263,0.02370339,68339.0,68338.0,2.7486237]
[1722074066473,0.00074172,68339.0,68338.0,2.7486237]
[1722074069882,0.02370339,68339.0,68338.0,2.7486237]
[1722074071097,0.00074172,68339.0,68338.0,2.7486237]
[1722074071790,0.00074172,68339.0,68338.0,2.7495477]
[1722074074452,0.02370337,68339.0,68338.0,2.7495477]
[1722074074750,0.00074172,68339.0,68338.0,2.62795287]
[1722074076770,0.00074172,68339.0,68338.0,2.62795393]
[1722074077890,0.02370336,68339.0,68338.0,2.62795393]
[1722074078955,0.00074172,68339.0,68338.0,2.62795393]
[1722074080477,0.00074172,68339.0,68338.0,2.62795282]
[1722074083635,0.02370336,68339.0,68338.0,2.62795282]
[1722074085293,0.02370336,68339.0,68338.0,2.86165127]
[1722074086221,0.02370336,68339.0,68338.0,2.71885127]
[1722074087931,0.02370336,68339.0,68338.0,2.7188511]
[1722074090399,0.02370336,68339.0,68338.0,2.4261891]
[1722074090653,0.00074172,68339.0,68338.0,2.4261891]
[1722074091405,0.00074172,68339.0,68338.0,2.42619082]
[1722074093875,0.02370379,68339.0,68338.0,2.42619082]
[1722074095291,0.02370379,68339.0,68338.0,2.07089906]
[1722074095486,0.02370379,68339.0,68338.0,2.42618993]
[1722074097804,0.00074172,68339.0,68338.0,2.42618993]
[1722074098207,0.00074172,68339.0,68338.0,2.27593036]
[1722074099073,0.00074172,68339.0,68338.0,1.5959507]
[1722074099402,0.00074172,68339.0,68338.0,2.27592954]
[1722074101216,0.00074172,68339.0,68338.0,2.15216125]
[1722074101630,0.00074172,68339.0,68338.0,2.04223154]
[1722074102325,0.00074172,68339.0,68338.0,2.15216125]
[1722074102870,0.00074172,68339.0,68338.0,2.15217782]
[1722074103278,0.06224172,68339.0,68338.0,2.15217782]
[1722074103489,0.06224172,68339.0,68338.0,2.04225594]
[1722074105402,0.0852042,68339.0,68338.0,2.04225594]
[1722074105853,0.0237042,68339.0,68338.0,2.04225594]
[1722074106068,0.00074172,68339.0,68338.0,2.04225594]
[1722074106481,0.00074172,68339.0,68338.0,2.207577]
[1722074106855,0.00074172,68339.0,68338.0,2.20757813]
[1722074107219,0.00074172,68339.0,68338.0,2.11965707]
[1722074108251,0.00074172,68339.0,68338.0,2.04225707]
[1722074108453,0.00074172,68339.0,68338.0,2.20757264]
[1722074109186,0.02370416,68339.0,68338.0,2.20757264]
[1722074109595,0.00074172,68339.0,68338.0,2.20757264]
[1722074110496,0.00074172,68339.0,68338.0,2.20756795]
[1722074114211,0.00074172,68339.0,68338.0,1.6733507]
[1722074114435,0.00074172,68339.0,68338.0,2.20756295]
[1722074117208,0.02370416,68339.0,68338.0,2.20756295]
[1722074117949,0.02370416,68339.0,68338.0,2.08596346]
[1722074118148,0.02370416,68339.0,68338.0,2.20756295]
[1722074118533,0.00074172,68339.0,68338.0,2.20756295]
[1722074121288,0.00074172,68339.0,68338.0,2.26856295]
[1722074121497,0.00074172,68339.0,68338.0,2.29053972]
[1722074121691,0.00074172,68339.0,68338.0,1.7343507]
[1722074121692,0.02370376,68339.0,68338.0,1.7343507]
[1722074121933,0.02370376,68339.0,68338.0,2.18063863]
[1722074122476,0.00074172,68339.0,68338.0,2.18063863]
[1722074122979,0.00074172,68339.0,68338.0,2.16705093]
[1722074123178,0.00074172,68339.0,68338.0,2.40074715]
[1722074123377,0.00074172,68339.0,68338.0,2.41433485]
[1722074125329,0.00074172,68339.0,68338.0,2.18063863]
[1722074125533,0.00074172,68339.0,68338.0,2.18062635]
[1722074126759,0.00074172,68339.0,68338.0,2.15209284]
[1722074126959,0.02370382,68339.0,68338.0,2.04222635]
[1722074127206,0.02370382,68339.0,68338.0,2.13012443]
[1722074127410,0.02370382,68339.0,68338.0,2.11653673]
[1722074128477,0.02370382,68339.0,68338.0,2.26642443]
[1722074129313,0.02370382,68339.0,68338.0,1.85384215]
[1722074129485,0.02370382,68339.0,68338.0,2.26644875]
[1722074129686,0.02370382,68339.0,68338.0,2.17855091]
[1722074129928,0.02370382,68339.0,68338.0,2.17954145]
[1722074130129,0.02370382,68339.0,68338.0,2.17855091]
[1722074132839,0.00074172,68339.0,68338.0,2.17855091]
[1722074133040,0.00074172,68339.0,68338.0,1.85384884]
[1722074133201,0.00074172,68339.0,68338.0,2.17853816]
[1722074133779,0.00074172,68339.0,68338.0,2.41223679]
[1722074134019,0.00074172,68339.0,68338.0,2.41223658]
[1722074134423,0.00074172,68339.0,68338.0,2.70489845]
[1722074134628,0.00074172,68339.0,68338.0,2.70488243]
[1722074135005,0.00074172,68339.0,68338.0,2.855142]
[1722074135409,0.00074172,68339.0,68338.0,2.17517227]
[1722074137446,0.02370313,68339.0,68338.0,2.17517227]
[1722074137863,0.0155185,68342.0,68339.0,1.6325487]
[1722074138074,0.0155185,68342.0,68339.0,2.09622627]
[1722074138277,0.0155185,68342.0,68339.0,2.38888427]
[1722074139253,0.0155185,68342.0,68339.0,2.40288427]
[1722074139454,0.0155185,68342.0,68339.0,2.41688427]
[1722074144229,0.03121038,68340.0,68339.0,2.41688427]
[1722074144809,0.00825,68340.0,68339.0,2.41688427]
[1722074145012,0.00825,68340.0,68339.0,2.36688427]
[1722074145757,0.00825,68340.0,68339.0,2.41688427]
[1722074146351,0.00825,68340.0,68339.0,2.36688427]
[1722074147094,0.00825,68340.0,68339.0,2.41688427]
[1722074147228,0.00825,68340.0,68339.0,2.36688427]
[1722074149173,0.00825,68340.0,68339.0,2.35288427]
[1722074149827,0.00825,68340.0,68339.0,2.36688427]
[1722074150431,0.00825,68340.0,68339.0,2.28278427]
[1722074150832,0.00825,68340.0,68339.0,2.36688427]
[1722074151671,0.03121021,68340.0,68339.0,2.36688427]
[1722074152961,0.03121021,68340.0,68339.0,2.07422627]
[1722074153167,0.03121021,68340.0,68339.0,1.93792627]
[1722074153367,0.03121021,68340.0,68339.0,1.4109087]
[1722074153590,0.03121021,68340.0,68339.0,1.4950087]
[1722074153917,0.15431021,68340.0,68339.0,0.789005]
[1722074154123,0.15431021,68340.0,68339.0,0.8025927]
[1722074154408,0.13135,68340.0,68339.0,0.8025927]
[1722074154755,0.13135,68340.0,68339.0,0.7885927]
[1722074154958,0.13135,68340.0,68339.0,0.7745927]
[1722074155155,0.13135,68340.0,68339.0,0.7885927]
[1722074155398,0.13135,68340.0,68339.0,0.789005]
[1722074155601,0.13135,68340.0,68339.0,0.761005]
[1722074155979,0.13135,68340.0,68339.0,0.775005]
[1722074156507,0.13135,68340.0,68339.0,0.789005]
[1722074157373,0.15431303,68340.0,68339.0,0.789005]
[1722074158531,0.13135,68340.0,68339.0,0.789005]
[1722074160507,0.13135,68340.0,68339.0,0.8025927]
[1722074160717,0.13135,68340.0,68339.0,0.789005]
[1722074161653,0.13135,68340.0,68339.0,0.496347]
[1722074161957,0.15431305,68340.0,68339.0,0.4979012]
[1722074162158,0.15431305,68340.0,68339.0,0.028]
[1722074162159,0.6111022,68340.0,68339.0,0.028]
[1722074162364,0.87970635,68340.0,68339.0,0.028]
[1722074162582,1.17236035,68340.0,68339.0,0.028]
[1722074162933,1.17236035,68340.0,68339.0,0.014]
[1722074163132,1.17236035,68340.0,68339.0,0.02]
[1722074163753,1.1493973,68340.0,68339.0,0.02]
[1722074164365,1.1493973,68340.0,68339.0,0.006]
[1722074165348,0.909345,68339.0,68338.0,0.000924]
[1722074165514,0.98447479,68339.0,68338.0,0.000924]
[1722074166323,1.13473436,68339.0,68338.0,0.000924]
[1722074166563,1.37114666,68339.0,68338.0,0.000924]
[1722074167058,1.13473436,68339.0,68338.0,0.000924]
[1722074167261,1.22088709,68339.0,68338.0,0.003924]
[1722074167440,1.30498709,68339.0,68338.0,0.003924]
[1722074167681,1.40498709,68339.0,68338.0,0.007924]
[1722074167813,1.54786265,68339.0,68338.0,0.007924]
[1722074168543,1.57082991,68339.0,68338.0,0.005924]
[1722074168723,1.54786265,68339.0,68338.0,0.105924]
[1722074169169,1.54786265,68339.0,68338.0,0.106924]
[1722074170581,1.84052065,68339.0,68338.0,0.106924]
[1722074170912,1.84943414,68339.0,68338.0,0.106924]
[1722074171512,1.87240164,68339.0,68338.0,0.106924]
[1722074172059,1.84943414,68339.0,68338.0,0.106924]
[1722074172259,1.84943414,68339.0,68338.0,0.105924]
[1722074172518,1.01825849,68339.0,68338.0,0.100924]
[1722074172731,1.25567079,68339.0,68338.0,0.100924]
[1722074173221,1.01925849,68339.0,68338.0,0.100924]
[1722074173783,1.33080058,68339.0,68338.0,0.100924]
[1722074174024,1.33080058,68339.0,68338.0,0.101924]
[1722074174227,1.48106015,68339.0,68338.0,0.101924]
[1722074174611,1.48006015,68339.0,68338.0,0.101924]
[1722074174812,1.48006015,68339.0,68338.0,0.102924]
[1722074175350,1.04122529,68339.0,68338.0,0.102924]
[1722074175647,1.27763759,68339.0,68338.0,0.102924]
[1722074176627,1.25467079,68339.0,68338.0,0.102924]
[1722074176950,0.1,68339.0,68338.0,0.102924]
[1722074177095,0.00825,68340.0,68338.0,0.102924]
[1722074177449,0.00825,68340.0,68339.0,0.0015542]
[1722074178504,0.00825,68340.0,68339.0,0.8957869]
[1722074178720,0.00825,68340.0,68339.0,1.1868907]
[1722074179844,0.03121427,68340.0,68339.0,1.1958907]
[1722074180213,0.03121427,68340.0,68339.0,1.27518741]
[1722074180670,0.00825,68340.0,68339.0,1.27518741]
[1722074181367,0.00825,68340.0,68339.0,1.28418741]
[1722074183883,0.03121505,68340.0,68339.0,1.28418741]
[1722074184951,0.00825,68340.0,68339.0,1.28418741]
[1722074186826,0.00725,68340.0,68339.0,1.28418741]
[1722074187565,0.00725,68340.0,68339.0,0.99152941]
[1722074187767,0.00725,68340.0,68339.0,0.90742941]
[1722074188974,0.00725,68340.0,68339.0,0.89384171]
[1722074189198,0.00725,68340.0,68339.0,0.90742941]
[1722074190222,0.00725,68340.0,68339.0,0.89384171]
[1722074190652,0.00725,68340.0,68339.0,0.45688371]
[1722074190947,0.00725,68340.0,68339.0,0.75109591]
[1722074191331,0.00725,68340.0,68339.0,0.74954171]
[1722074191857,0.03021355,68340.0,68339.0,0.74954171]
[1722074192083,0.03021355,68340.0,68339.0,0.45688371]
[1722074192293,0.03021355,68340.0,68339.0,0.45843791]
[1722074193267,0.00725,68340.0,68339.0,0.47202561]
[1722074193467,0.00725,68340.0,68339.0,0.99092941]
[1722074193878,0.00725,68340.0,68339.0,1.28358741]
[1722074194204,0.00725,68340.0,68339.0,0.99092941]
[1722074195503,0.00725,68340.0,68339.0,1.28358741]
[1722074196707,0.0302133,68340.0,68339.0,1.28358741]
[1722074196902,0.00725,68340.0,68339.0,1.28358741]
[1722074200322,0.0302133,68340.0,68339.0,1.28358741]
[1722074200503,0.0302133,68340.0,68339.0,1.26999971]
[1722074200705,0.0302133,68340.0,68339.0,1.28358741]
[1722074201522,0.00725,68340.0,68339.0,1.28358741]
[1722074204851,0.03021326,68340.0,68339.0,1.28358741]
[1722074205054,0.00725,68340.0,68339.0,1.28358741]
[1722074208325,0.0302133,68340.0,68339.0,1.28358741]
[1722074219035,0.00725,68340.0,68339.0,1.28358741]
[1722074222424,0.03021344,68340.0,68339.0,1.28358741]
[1722074222626,0.03021344,68340.0,68339.0,1.38358741]
[1722074226963,0.00725,68340.0,68339.0,1.38358741]
[1722074229784,0.00725,68340.0,68339.0,1.38451141]
[1722074230339,0.03021301,68340.0,68339.0,1.38451141]
[1722074230556,0.00725,68340.0,68339.0,1.38451141]
[1722074233463,0.03021317,68340.0,68339.0,1.38451141]
[1722074238343,0.03021317,68340.0,68339.0,1.37951141]
[1722074238866,0.03021317,68340.0,68339.0,1.38834996]
[1722074242232,0.03021317,68340.0,68339.0,1.70400796]
[1722074242559,0.00725,68340.0,68339.0,1.70400796]
[1722074246186,0.03021255,68340.0,68339.0,1.70400796]
[1722074247992,0.03021255,68340.0,68339.0,1.41134996]
[1722074248399,0.03021255,68340.0,68339.0,1.70400796]
[1722074250290,0.00725,68340.0,68339.0,1.70400796]
[1722074253665,0.03021251,68340.0,68339.0,1.70400796]
[1722074254213,0.03021251,68340.0,68339.0,1.85426753]
[1722074254410,0.03021251,68340.0,68339.0,2.22626553]
[1722074254925,0.00725,68340.0,68339.0,2.22626553]
[1722074255243,0.00725,68340.0,68339.0,2.16726553]
[1722074255443,0.00725,68340.0,68339.0,2.17626553]
[1722074255865,0.00725,68340.0,68339.0,2.16726553]
[1722074256269,0.00725,68340.0,68339.0,2.17626553]
[1722074256446,0.00725,68340.0,68339.0,2.16726553]
[1722074256879,0.00725,68340.0,68339.0,2.17226553]
[1722074257078,0.00725,68340.0,68339.0,1.80950753]
[1722074257378,0.00725,68340.0,68339.0,2.18626553]
[1722074257993,0.03021073,68340.0,68339.0,2.17267783]
[1722074258193,0.00725,68340.0,68339.0,2.17267783]
[1722074260288,0.00725,68340.0,68339.0,2.18626553]
[1722074260743,0.00725,68340.0,68339.0,2.17267783]
[1722074260941,0.03021069,68340.0,68339.0,2.17267783]
[1722074261498,0.03021069,68340.0,68339.0,2.18626553]
[1722074263914,0.03021069,68340.0,68339.0,1.89360753]
[1722074266947,0.00725,68340.0,68339.0,1.89360753]
[1722074267524,0.00725,68340.0,68339.0,2.18626553]
[1722074269256,0.00725,68340.0,68339.0,2.23626553]
[1722074270454,0.00725,68340.0,68339.0,2.48626553]
[1722074271569,0.0302083,68340.0,68339.0,2.48626553]
[1722074271729,0.0302083,68340.0,68339.0,2.78092353]
[1722074271933,0.00725,68340.0,68339.0,2.78092353]
[1722074272129,0.00725,68340.0,68339.0,2.48826553]
[1722074272331,0.00825,68345.0,68344.0,1.2101197]
[1722074272555,0.00825,68345.0,68344.0,2.15475327]
[1722074272753,0.00825,68345.0,68344.0,2.44739027]
[1722074273123,0.00825,68345.0,68344.0,2.74002727]
[1722074273571,0.00825,68345.0,68344.0,2.75402727]
[1722074273886,0.00825,68345.0,68344.0,2.76802727]
[1722074274622,0.03120847,68345.0,68344.0,2.76802727]
[1722074279308,0.002,68359.0,68346.0,2.3806097]
[1722074279511,0.002,68359.0,68346.0,2.55386927]
[1722074279732,0.002,68359.0,68346.0,2.65586927]
[1722074280545,0.002,68359.0,68346.0,2.66986927]
[1722074280781,0.002,68359.0,68346.0,2.66786927]
[1722074281173,0.07512979,68354.0,68346.0,2.15934127]
[1722074281936,0.07512979,68354.0,68346.0,2.17334127]
[1722074282146,0.07512979,68354.0,68346.0,1.79661327]
[1722074282479,0.07512979,68354.0,68346.0,1.88071327]
[1722074282859,0.07512979,68354.0,68346.0,1.98071327]
[1722074283440,0.07512979,68354.0,68346.0,1.92051327]
[1722074283641,0.07512979,68354.0,68346.0,1.98171327]
[1722074285236,0.07512979,68354.0,68346.0,1.99072746]
[1722074288877,0.03120809,68347.0,68346.0,1.99072746]
[1722074292299,0.00825,68347.0,68346.0,1.99072746]
[1722074295978,0.03120813,68347.0,68346.0,1.99072746]
[1722074300069,0.03120813,68347.0,68346.0,1.85412746]
[1722074300260,0.00825,68347.0,68346.0,1.85412746]
[1722074302872,0.00825,68347.0,68346.0,1.82612746]
[1722074303073,0.00825,68347.0,68346.0,1.84012746]
[1722074303257,0.00825,68347.0,68346.0,1.85412746]
[1722074303642,0.03120869,68347.0,68346.0,1.85412746]
[1722074305882,0.03120869,68347.0,68346.0,1.51976789]
[1722074306094,0.03120869,68347.0,68346.0,1.60386789]
[1722074306250,0.03120869,68347.0,68346.0,1.70386789]
[1722074306445,0.03120869,68347.0,68346.0,1.99792746]
[1722074307191,0.00825,68347.0,68346.0,2.29055546]
[1722074307372,0.00825,68347.0,68346.0,1.99792746]
[1722074308305,0.00825,68347.0,68346.0,1.98392746]
[1722074308717,0.00825,68347.0,68346.0,2.04792746]
[1722074309078,0.00825,68347.0,68346.0,2.34055546]
[1722074310005,0.00825,68347.0,68346.0,2.32655546]
[1722074310537,0.03120757,68347.0,68346.0,2.34055546]
[1722074310681,0.03120757,68347.0,68346.0,2.32655546]
[1722074310917,0.03120757,68347.0,68346.0,2.34055546]
[1722074311341,0.03120757,68347.0,68346.0,2.32655546]
[1722074311507,0.03120757,68347.0,68346.0,2.34055546]
[1722074311717,0.03120757,68347.0,68346.0,2.03318346]
[1722074312475,0.03120757,68347.0,68346.0,1.98318346]
[1722074312617,0.03120757,68347.0,68346.0,1.89908346]
[1722074312823,0.03120757,68347.0,68346.0,1.98318346]
[1722074316604,0.00825,68347.0,68346.0,1.98318346]
[1722074319589,0.03120756,68347.0,68346.0,1.98318346]
[1722074320018,0.00825,68347.0,68346.0,1.98318346]
[1722074322834,0.03120779,68347.0,68346.0,1.98318346]
[1722074323799,0.00825,68347.0,68346.0,1.98318346]
[1722074324700,0.00825,68347.0,68346.0,1.98410746]
[1722074325709,0.00825,68347.0,68346.0,1.58294789]
[1722074325833,0.00825,68347.0,68346.0,1.37441989]
[1722074326962,0.00825,68347.0,68346.0,1.39741989]
[1722074328614,0.00825,68347.0,68346.0,1.31331989]
[1722074328806,0.00825,68347.0,68346.0,1.39741989]
[1722074329451,0.13075,68347.0,68346.0,1.31331989]
[1722074329651,0.13075,68347.0,68346.0,1.39741989]
[1722074329882,0.13075,68347.0,68346.0,1.38383219]
[1722074331336,0.13075,68347.0,68346.0,1.2654057]
[1722074333278,0.13075,68347.0,68346.0,1.1813057]
[1722074333480,0.13075,68347.0,68346.0,1.2654057]
[1722074336685,0.00825,68347.0,68346.0,1.2654057]
[1722074336854,0.00825,68347.0,68346.0,1.3458057]
[1722074337300,0.03120903,68347.0,68346.0,1.3458057]
[1722074337463,0.00825,68347.0,68346.0,1.3458057]
[1722074337876,0.00825,68347.0,68346.0,1.1813057]
[1722074338082,0.00825,68347.0,68346.0,1.2654057]
[1722074339920,0.03120903,68347.0,68346.0,1.2654057]
[1722074342776,0.03120903,68347.0,68346.0,1.1813057]
[1722074342946,0.03120903,68347.0,68346.0,0.9727777]
[1722074347133,0.03120903,68347.0,68346.0,0.95919]
[1722074347341,0.03120903,68347.0,68346.0,0.9727777]
[1722074348071,0.00825,68347.0,68346.0,0.9727777]
[1722074349092,0.00825,68347.0,68346.0,0.8886777]
[1722074349307,0.00825,68347.0,68346.0,0.9727777]
[1722074350209,0.00825,68347.0,68346.0,0.95919]
[1722074350658,0.00825,68347.0,68346.0,0.9727777]
[1722074351001,0.03120922,68347.0,68346.0,0.9727777]
[1722074351199,0.03120922,68347.0,68346.0,0.95919]
[1722074351385,0.00825,68347.0,68346.0,0.95919]
[1722074352048,0.00825,68347.0,68346.0,1.2654057]
[1722074352750,0.00825,68347.0,68346.0,1.251818]
[1722074352956,0.00825,68347.0,68346.0,0.9727777]
[1722074353753,0.00825,68347.0,68346.0,0.9587777]
[1722074354087,0.00825,68347.0,68346.0,0.9727777]
[1722074354705,0.03120918,68347.0,68346.0,0.9727777]
[1722074355003,0.03120918,68347.0,68346.0,0.9587777]
[1722074355211,0.03120918,68347.0,68346.0,0.9727777]
[1722074355410,0.03120918,68347.0,68346.0,0.95919]
[1722074355616,0.03120918,68347.0,68346.0,0.9587777]
[1722074355772,0.03120918,68347.0,68346.0,0.9727777]
[1722074355978,0.00825,68347.0,68346.0,0.94519]